[Event "Titled Tuesday Blitz December 06 Late 2022"]
[White "Stoleriu, George"]
[Black "Manukyan, Sargis A."]
[WhiteFideId "1227505"]
[BlackFideId "13303970"]
[WhiteElo "2699"]
[BlackElo "2568"]
[Result "1-0"]
[Round "06"]
[TimeControl "180+1"]
[Date "2022.12.07"]
[WhiteClock "0:00:24"]
[BlackClock "0:00:11"]

1. e4 {[%clk 0:03:00]}  c5 {[%clk 0:03:00]} 2. Nc3 {[%clk 0:03:01]}  Nc6 {[%clk 0:03:00]} 3. Bb5 {[%clk 0:03:01]}  g6 {[%clk 0:03:01]} 4. Bxc6 {[%clk 0:03:01]}  bxc6 {[%clk 0:03:02]} 5. f4 {[%clk 0:03:02]}  Bg7 {[%clk 0:03:02]} 6. d3 {[%clk 0:03:03]}  d6 {[%clk 0:03:03]} 7. Nf3 {[%clk 0:03:04]}  Nh6 {[%clk 0:03:03]} 8. O-O {[%clk 0:03:05]}  O-O {[%clk 0:03:04]} 9. Qe1 {[%clk 0:03:05]}  f6 {[%clk 0:03:01]} 10. Bd2 {[%clk 0:03:04]}  Rb8 {[%clk 0:03:00]} 11. b3 {[%clk 0:03:04]}  Nf7 {[%clk 0:03:01]} 12. Na4 {[%clk 0:03:05]}  e5 {[%clk 0:02:58]} 13. c4 {[%clk 0:03:05]}  Bg4 {[%clk 0:02:55]} 14. h3 {[%clk 0:03:03]}  Bxf3 {[%clk 0:02:55]} 15. Rxf3 {[%clk 0:03:04]}  exf4 {[%clk 0:02:45]} 16. Bxf4 {[%clk 0:03:05]}  Ne5 {[%clk 0:02:38]} 17. Bxe5 {[%clk 0:03:01]}  fxe5 {[%clk 0:02:34]} 18. Qe3 {[%clk 0:02:51]}  Rxf3 {[%clk 0:02:32]} 19. Qxf3 {[%clk 0:02:52]}  Qf6 {[%clk 0:02:25]} 20. Rf1 {[%clk 0:02:49]}  Qxf3 {[%clk 0:02:23]} 21. Rxf3 {[%clk 0:02:50]}  Rf8 {[%clk 0:02:19]} 22. Kf2 {[%clk 0:02:46]}  Rxf3+ {[%clk 0:02:16]} 23. Kxf3 {[%clk 0:02:47]}  Kf7 {[%clk 0:02:11]} 24. Nc3 {[%clk 0:02:47]}  Bh6 {[%clk 0:02:08]} 25. Ne2 {[%clk 0:02:46]}  Ke6 {[%clk 0:02:06]} 26. h4 {[%clk 0:02:43]}  Bd2 {[%clk 0:02:05]} 27. g4 {[%clk 0:02:43]}  Kd7 {[%clk 0:01:52]} 28. g5 {[%clk 0:02:34]}  Be1 {[%clk 0:01:49]} 29. Kg4 {[%clk 0:02:28]}  Ke6 {[%clk 0:01:42]} 30. Kh3 {[%clk 0:02:08]}  Bf2 {[%clk 0:01:38]} 31. Nc3 {[%clk 0:02:03]}  Be1 {[%clk 0:01:34]} 32. Nd1 {[%clk 0:01:59]}  Bd2 {[%clk 0:01:29]} 33. Nf2 {[%clk 0:01:56]}  h5 {[%clk 0:01:25]} 34. gxh6 {[%clk 0:01:53]}  Bxh6 {[%clk 0:01:25]} 35. Kg4 {[%clk 0:01:54]}  Bd2 {[%clk 0:01:20]} 36. Nh3 {[%clk 0:01:36]}  Kf6 {[%clk 0:01:14]} 37. h5 {[%clk 0:01:34]}  gxh5+ {[%clk 0:01:14]} 38. Kxh5 {[%clk 0:01:35]}  Bc1 {[%clk 0:01:07]} 39. Nf2 {[%clk 0:01:35]}  Bd2 {[%clk 0:01:01]} 40. Ng4+ {[%clk 0:01:36]}  Ke6 {[%clk 0:01:01]} 41. Kg6 {[%clk 0:01:36]}  Bf4 {[%clk 0:00:53]} 42. Nf6 {[%clk 0:01:35]}  Bg3 {[%clk 0:00:47]} 43. Nh5 {[%clk 0:01:27]}  Be1 {[%clk 0:00:42]} 44. Ng7+ {[%clk 0:01:28]}  Ke7 {[%clk 0:00:42]} 45. Nf5+ {[%clk 0:01:26]}  Ke6 {[%clk 0:00:42]} 46. Ng7+ {[%clk 0:01:26]}  Ke7 {[%clk 0:00:42]} 47. Kf5 {[%clk 0:01:27]}  Bh4 {[%clk 0:00:39]} 48. Nh5 {[%clk 0:01:28]}  Kf7 {[%clk 0:00:35]} 49. Kg4 {[%clk 0:01:06]}  Be1 {[%clk 0:00:33]} 50. Kg5 {[%clk 0:01:06]}  Ke6 {[%clk 0:00:27]} 51. Kg6 {[%clk 0:01:05]}  Bd2 {[%clk 0:00:23]} 52. Nf6 {[%clk 0:01:05]}  Be1 {[%clk 0:00:21]} 53. Ne8 {[%clk 0:01:04]}  Ba5 {[%clk 0:00:20]} 54. Ng7+ {[%clk 0:01:02]}  Ke7 {[%clk 0:00:20]} 55. a3 {[%clk 0:01:00]}  Bd2 {[%clk 0:00:18]} 56. Nf5+ {[%clk 0:00:59]}  Ke6 {[%clk 0:00:18]} 57. Kg7 {[%clk 0:01:00]}  Ba5 {[%clk 0:00:16]} 58. Kf8 {[%clk 0:01:00]}  d5 {[%clk 0:00:16]} 59. Ke8 {[%clk 0:01:00]}  Bb6 {[%clk 0:00:15]} 60. a4 {[%clk 0:00:55]}  Ba5 {[%clk 0:00:15]} 61. Ng7+ {[%clk 0:00:48]}  Kf6 {[%clk 0:00:14]} 62. Nf5 {[%clk 0:00:47]}  Ke6 {[%clk 0:00:14]} 63. Ne3 {[%clk 0:00:47]}  dxe4 {[%clk 0:00:13]} 64. dxe4 {[%clk 0:00:47]}  Bb6 {[%clk 0:00:13]} 65. Ng4 {[%clk 0:00:45]}  Ba5 {[%clk 0:00:13]} 66. Nh6 {[%clk 0:00:45]}  Kf6 {[%clk 0:00:12]} 67. Kd7 {[%clk 0:00:45]}  Kg5 {[%clk 0:00:13]} 68. Nf5 {[%clk 0:00:41]}  Kf4 {[%clk 0:00:13]} 69. Nd6 {[%clk 0:00:41]}  Bb4 {[%clk 0:00:12]} 70. Kxc6 {[%clk 0:00:42]}  Ba3 {[%clk 0:00:11]} 71. Kd5 {[%clk 0:00:42]}  Bb4 {[%clk 0:00:11]} 72. Nf7 {[%clk 0:00:42]}  Bc3 {[%clk 0:00:11]} 73. Nd8 {[%clk 0:00:42]}  Bd4 {[%clk 0:00:11]} 74. Ne6+ {[%clk 0:00:43]}  Ke3 {[%clk 0:00:11]} 75. Nd8 {[%clk 0:00:37]}  Kd3 {[%clk 0:00:09]} 76. Nc6 {[%clk 0:00:36]}  Kc3 {[%clk 0:00:09]} 77. a5 {[%clk 0:00:22]}  Kxb3 {[%clk 0:00:09]} 78. a6 {[%clk 0:00:22]}  Ka4 {[%clk 0:00:09]} 79. Kd6 {[%clk 0:00:23]}  Bb2 {[%clk 0:00:07]} 80. Kc7 {[%clk 0:00:23]}  Kb3 {[%clk 0:00:07]} 81. Nxa7 {[%clk 0:00:23]}  Kxc4 {[%clk 0:00:07]} 82. Nc6 {[%clk 0:00:24]}  Kd3 {[%clk 0:00:06]} 83. a7 {[%clk 0:00:25]}  Kxe4 {[%clk 0:00:07]} 84. a8=Q {[%clk 0:00:25]}  Kf3 {[%clk 0:00:07]} 85. Nxe5+ {[%clk 0:00:24]}  Kf4 {[%clk 0:00:07]} 86. Nd3+ {[%clk 0:00:24]}  Ke3 {[%clk 0:00:07]} 87. Nxb2 {[%clk 0:00:25]}  c4 {[%clk 0:00:08]} 88. Nxc4+ {[%clk 0:00:24]}  Kd3 {[%clk 0:00:08]} 89. Qd5+ {[%clk 0:00:25]}  Kc2 {[%clk 0:00:09]} 90. Qd2+ {[%clk 0:00:24]}  Kb3 {[%clk 0:00:10]} 91. Qb2+ {[%clk 0:00:24]}  Ka4 {[%clk 0:00:11]} 92. Nd6 {[%clk 0:00:23]}  Ka5 {[%clk 0:00:11]} 93. Qb5# {[%clk 0:00:24]} 1-0


[Site "https://www.chess.com"]

[Event "Titled Tuesday Blitz December 06 Late 2022"]
[White "Suder, Jakub"]
[Black "Sivakumar, Shaaketh"]
[WhiteFideId "1195310"]
[BlackFideId "30940176"]
[WhiteElo "2655"]
[BlackElo "2465"]
[Result "1-0"]
[Round "06"]
[TimeControl "180+1"]
[Date "2022.12.07"]
[WhiteClock "0:01:56"]
[BlackClock "0:02:16"]

1. d4 {[%clk 0:03:00]}  e6 {[%clk 0:03:00]} 2. c4 {[%clk 0:03:01]}  b6 {[%clk 0:03:00]} 3. Nc3 {[%clk 0:03:01]}  Bb7 {[%clk 0:02:59]} 4. a3 {[%clk 0:03:01]}  Nf6 {[%clk 0:02:54]} 5. Nf3 {[%clk 0:03:01]}  g6 {[%clk 0:02:51]} 6. d5 {[%clk 0:03:00]}  Bg7 {[%clk 0:02:50]} 7. e4 {[%clk 0:03:01]}  exd5 {[%clk 0:02:49]} 8. exd5 {[%clk 0:03:00]}  O-O {[%clk 0:02:50]} 9. Be2 {[%clk 0:03:00]}  c6 {[%clk 0:02:40]} 10. O-O {[%clk 0:02:57]}  cxd5 {[%clk 0:02:39]} 11. cxd5 {[%clk 0:02:57]}  d6 {[%clk 0:02:40]} 12. Re1 {[%clk 0:02:52]}  Nbd7 {[%clk 0:02:40]} 13. Bf4 {[%clk 0:02:46]}  Nc5 {[%clk 0:02:37]} 14. h3 {[%clk 0:02:46]}  Rc8 {[%clk 0:02:35]} 15. Bf1 {[%clk 0:02:40]}  a6 {[%clk 0:02:32]} 16. Rc1 {[%clk 0:02:37]}  b5 {[%clk 0:02:28]} 17. b4 {[%clk 0:02:36]}  Na4 {[%clk 0:02:22]} 18. Nxa4 {[%clk 0:02:35]}  bxa4 {[%clk 0:02:23]} 19. Rxc8 {[%clk 0:02:34]}  Qxc8 {[%clk 0:02:24]} 20. Qxa4 {[%clk 0:02:30]}  Rd8 {[%clk 0:02:24]} 21. Bg5 {[%clk 0:02:23]}  Bxd5 {[%clk 0:02:21]} 22. Qxa6 {[%clk 0:02:19]}  Qf5 {[%clk 0:02:20]} 23. Qb6 {[%clk 0:02:03]}  Ra8 {[%clk 0:02:17]} 24. Bxf6 {[%clk 0:01:59]}  Bxf6 {[%clk 0:02:15]} 25. Qxd6 {[%clk 0:01:56]}  Bxf3 {[%clk 0:02:15]} 26. gxf3 {[%clk 0:01:55]}  Rxa3 {[%clk 0:02:15]} 27. Re8+ {[%clk 0:01:55]}  Kg7 {[%clk 0:02:16]} 28. Qf8# {[%clk 0:01:56]} 1-0


[Site "https://www.chess.com"]

[Event "Titled Tuesday Blitz December 06 Late 2022"]
[White "Sukandar, Irine Kharisma"]
[Black "Boyer, Mahel"]
[WhiteFideId "7101937"]
[BlackFideId "45102422"]
[WhiteElo "2539"]
[BlackElo "2673"]
[Result "0-1"]
[Round "06"]
[TimeControl "180+1"]
[Date "2022.12.07"]
[WhiteClock "0:00:33"]
[BlackClock "0:00:08"]

1. e4 {[%clk 0:03:00]}  Nc6 {[%clk 0:02:58]} 2. Nf3 {[%clk 0:02:59]}  d5 {[%clk 0:02:52]} 3. exd5 {[%clk 0:02:58]}  Qxd5 {[%clk 0:02:53]} 4. Nc3 {[%clk 0:02:58]}  Qh5 {[%clk 0:02:53]} 5. Be2 {[%clk 0:02:57]}  Bg4 {[%clk 0:02:54]} 6. O-O {[%clk 0:02:55]}  O-O-O {[%clk 0:02:55]} 7. h3 {[%clk 0:02:49]}  Bxh3 {[%clk 0:02:55]} 8. Ne1 {[%clk 0:02:34]}  Qg6 {[%clk 0:02:53]} 9. Bh5 {[%clk 0:02:32]}  Qe6 {[%clk 0:01:32]} 10. gxh3 {[%clk 0:02:31]}  g6 {[%clk 0:01:29]} 11. Bg4 {[%clk 0:02:24]}  f5 {[%clk 0:01:19]} 12. Qe2 {[%clk 0:02:08]}  Qf6 {[%clk 0:01:13]} 13. Bf3 {[%clk 0:02:04]}  Nd4 {[%clk 0:01:14]} 14. Qe3 {[%clk 0:02:00]}  e5 {[%clk 0:01:12]} 15. Bg2 {[%clk 0:01:57]}  Bh6 {[%clk 0:01:07]} 16. Qd3 {[%clk 0:01:52]}  Ne7 {[%clk 0:01:07]} 17. Qc4 {[%clk 0:01:46]}  g5 {[%clk 0:00:24]} 18. d3 {[%clk 0:01:38]}  g4 {[%clk 0:00:24]} 19. hxg4 {[%clk 0:01:13]}  Rhg8 {[%clk 0:00:24]} 20. Bxh6 {[%clk 0:01:10]}  Qxh6 {[%clk 0:00:24]} 21. Qf7 {[%clk 0:00:54]}  Ng6 {[%clk 0:00:13]} 22. Nd5 {[%clk 0:00:46]}  Rg7 {[%clk 0:00:08]} 23. g5 {[%clk 0:00:33]}  Ne2# {[%clk 0:00:08]} 0-1


[Site "https://www.chess.com"]

[Event "Titled Tuesday Blitz December 06 Late 2022"]
[White "Szyszylo, Rafal"]
[Black "Antonio, Jorge Carlos"]
[WhiteFideId "1109626"]
[BlackFideId "113190"]
[WhiteElo "1981"]
[BlackElo "2247"]
[Result "1-0"]
[Round "06"]
[TimeControl "180+1"]
[Date "2022.12.07"]
[WhiteClock "0:00:20"]
[BlackClock "0:00:17"]

1. e4 {[%clk 0:03:00]}  c5 {[%clk 0:02:58]} 2. Nf3 {[%clk 0:03:00]}  e6 {[%clk 0:02:58]} 3. d4 {[%clk 0:03:00]}  cxd4 {[%clk 0:02:58]} 4. Nxd4 {[%clk 0:03:01]}  a6 {[%clk 0:02:58]} 5. Nc3 {[%clk 0:03:01]}  Nc6 {[%clk 0:02:58]} 6. Be3 {[%clk 0:02:59]}  Bb4 {[%clk 0:02:59]} 7. Be2 {[%clk 0:02:56]}  Nf6 {[%clk 0:02:59]} 8. O-O {[%clk 0:02:55]}  Bxc3 {[%clk 0:02:57]} 9. bxc3 {[%clk 0:02:55]}  Nxe4 {[%clk 0:02:57]} 10. Nxc6 {[%clk 0:02:51]}  bxc6 {[%clk 0:02:56]} 11. Bf3 {[%clk 0:02:42]}  Nxc3 {[%clk 0:02:51]} 12. Qd4 {[%clk 0:02:34]}  Nd5 {[%clk 0:02:45]} 13. Bxd5 {[%clk 0:02:30]}  cxd5 {[%clk 0:02:43]} 14. Qxg7 {[%clk 0:02:30]}  Rf8 {[%clk 0:02:39]} 15. Bh6 {[%clk 0:02:24]}  Qe7 {[%clk 0:02:34]} 16. Qxh7 {[%clk 0:02:24]}  Bb7 {[%clk 0:02:24]} 17. Rab1 {[%clk 0:02:23]}  O-O-O {[%clk 0:02:22]} 18. Bxf8 {[%clk 0:02:15]}  Rxf8 {[%clk 0:02:18]} 19. Rb3 {[%clk 0:02:15]}  a5 {[%clk 0:02:16]} 20. Rfb1 {[%clk 0:02:13]}  Bc6 {[%clk 0:02:05]} 21. Rb8+ {[%clk 0:02:01]}  Kc7 {[%clk 0:02:05]} 22. Rxf8 {[%clk 0:02:00]}  Qxf8 {[%clk 0:02:05]} 23. h4 {[%clk 0:01:50]}  Qa3 {[%clk 0:02:04]} 24. Qxf7 {[%clk 0:01:43]}  Qxa2 {[%clk 0:02:03]} 25. Rc1 {[%clk 0:01:38]}  Qb2 {[%clk 0:02:02]} 26. Qf4+ {[%clk 0:01:38]}  Kc8 {[%clk 0:01:59]} 27. h5 {[%clk 0:01:34]}  a4 {[%clk 0:01:58]} 28. h6 {[%clk 0:01:18]}  a3 {[%clk 0:01:58]} 29. h7 {[%clk 0:01:18]}  a2 {[%clk 0:01:55]} 30. Kh2 {[%clk 0:00:50]}  Qh8 {[%clk 0:01:42]} 31. Qh6 {[%clk 0:00:31]}  d4 {[%clk 0:01:16]} 32. Ra1 {[%clk 0:00:31]}  Bd5 {[%clk 0:01:11]} 33. g4 {[%clk 0:00:27]}  Qe5+ {[%clk 0:01:07]} 34. f4 {[%clk 0:00:24]}  Qe2+ {[%clk 0:01:02]} 35. Kh3 {[%clk 0:00:25]}  Qg2+ {[%clk 0:00:52]} 36. Kh4 {[%clk 0:00:26]}  Qf2+ {[%clk 0:00:47]} 37. Kg5 {[%clk 0:00:24]}  e5 {[%clk 0:00:24]} 38. h8=Q+ {[%clk 0:00:22]}  Kc7 {[%clk 0:00:23]} 39. Qxe5+ {[%clk 0:00:22]}  Kd8 {[%clk 0:00:17]} 40. Qf8# {[%clk 0:00:20]} 1-0


[Site "https://www.chess.com"]

[Event "Titled Tuesday Blitz December 06 Late 2022"]
[White "Therrien, Alex L"]
[Black "Polster, Christian"]
[WhiteFideId "412856"]
[BlackFideId "12965081"]
[WhiteElo "2214"]
[BlackElo "2195"]
[Result "1-0"]
[Round "06"]
[TimeControl "180+1"]
[Date "2022.12.07"]
[WhiteClock "0:00:03"]
[BlackClock "0:00:01"]

1. d4 {[%clk 0:03:00]}  d5 {[%clk 0:02:59]} 2. c4 {[%clk 0:03:00]}  e6 {[%clk 0:02:59]} 3. Nf3 {[%clk 0:02:57]}  c5 {[%clk 0:02:59]} 4. cxd5 {[%clk 0:02:57]}  exd5 {[%clk 0:02:58]} 5. g3 {[%clk 0:02:57]}  Nc6 {[%clk 0:02:55]} 6. Bg2 {[%clk 0:02:57]}  Nf6 {[%clk 0:02:49]} 7. O-O {[%clk 0:02:56]}  h6 {[%clk 0:02:31]} 8. Nc3 {[%clk 0:02:52]}  Be6 {[%clk 0:02:28]} 9. Bf4 {[%clk 0:02:45]}  Be7 {[%clk 0:02:26]} 10. Rc1 {[%clk 0:02:43]}  O-O {[%clk 0:02:16]} 11. dxc5 {[%clk 0:02:37]}  Bxc5 {[%clk 0:02:16]} 12. Na4 {[%clk 0:02:23]}  Be7 {[%clk 0:02:04]} 13. Nc5 {[%clk 0:02:22]}  Qb6 {[%clk 0:02:01]} 14. Nb3 {[%clk 0:01:59]}  Rfd8 {[%clk 0:01:38]} 15. Nfd4 {[%clk 0:01:43]}  Nxd4 {[%clk 0:01:06]} 16. Qxd4 {[%clk 0:01:41]}  Qxd4 {[%clk 0:00:59]} 17. Nxd4 {[%clk 0:01:41]}  Rdc8 {[%clk 0:00:57]} 18. Rfd1 {[%clk 0:01:28]}  a6 {[%clk 0:00:50]} 19. h3 {[%clk 0:01:23]}  Rxc1 {[%clk 0:00:36]} 20. Rxc1 {[%clk 0:01:23]}  Rc8 {[%clk 0:00:36]} 21. Rd1 {[%clk 0:01:06]}  Kf8 {[%clk 0:00:27]} 22. a3 {[%clk 0:00:45]}  Ke8 {[%clk 0:00:20]} 23. Bd2 {[%clk 0:00:43]}  Bd7 {[%clk 0:00:17]} 24. Bc3 {[%clk 0:00:32]}  Ne4 {[%clk 0:00:17]} 25. Be1 {[%clk 0:00:31]}  Bf6 {[%clk 0:00:15]} 26. e3 {[%clk 0:00:25]}  Ke7 {[%clk 0:00:11]} 27. Bf1 {[%clk 0:00:20]}  Ke8 {[%clk 0:00:06]} 28. Kh2 {[%clk 0:00:20]}  Rc7 {[%clk 0:00:05]} 29. Bd3 {[%clk 0:00:19]}  Nc5 {[%clk 0:00:04]} 30. Be2 {[%clk 0:00:17]}  Ne6 {[%clk 0:00:04]} 31. Bc3 {[%clk 0:00:16]}  Nxd4 {[%clk 0:00:04]} 32. exd4 {[%clk 0:00:15]}  Be6 {[%clk 0:00:04]} 33. Bf3 {[%clk 0:00:15]}  Kd7 {[%clk 0:00:04]} 34. h4 {[%clk 0:00:10]}  Rc4 {[%clk 0:00:04]} 35. Be2 {[%clk 0:00:09]}  Rc8 {[%clk 0:00:03]} 36. h5 {[%clk 0:00:09]}  Be7 {[%clk 0:00:03]} 37. Kg2 {[%clk 0:00:07]}  Bf5 {[%clk 0:00:02]} 38. f3 {[%clk 0:00:06]}  Bf6 {[%clk 0:00:03]} 39. g4 {[%clk 0:00:06]}  Be6 {[%clk 0:00:02]} 40. Rd2 {[%clk 0:00:06]}  Re8 {[%clk 0:00:01]} 41. Bd3 {[%clk 0:00:05]}  Bg5 {[%clk 0:00:02]} 42. Re2 {[%clk 0:00:05]}  f6 {[%clk 0:00:01]} 43. Kg3 {[%clk 0:00:04]}  Bf7 {[%clk 0:00:01]} 44. Rxe8 {[%clk 0:00:03]} 1-0


[Site "https://www.chess.com"]

[Event "Titled Tuesday Blitz December 06 Late 2022"]
[White "Toncheva, Nadya"]
[Black "Hoffmann, Asa"]
[WhiteFideId "2924056"]
[BlackFideId "2001470"]
[WhiteElo "2101"]
[BlackElo "2117"]
[Result "1-0"]
[Round "06"]
[TimeControl "180+1"]
[Date "2022.12.07"]
[WhiteClock "0:00:15"]
[BlackClock "0:00:31"]

1. e4 {[%clk 0:03:00]}  d6 {[%clk 0:02:53]} 2. d4 {[%clk 0:03:00]}  Nf6 {[%clk 0:02:53]} 3. Nc3 {[%clk 0:02:59]}  c6 {[%clk 0:02:53]} 4. f4 {[%clk 0:02:49]}  Qa5 {[%clk 0:02:52]} 5. Bd3 {[%clk 0:02:46]}  e5 {[%clk 0:02:51]} 6. Nf3 {[%clk 0:02:39]}  exd4 {[%clk 0:02:50]} 7. Nxd4 {[%clk 0:02:39]}  Qb6 {[%clk 0:02:49]} 8. Nf3 {[%clk 0:02:26]}  Be7 {[%clk 0:02:48]} 9. Qe2 {[%clk 0:02:20]}  O-O {[%clk 0:02:47]} 10. a3 {[%clk 0:02:05]}  Nbd7 {[%clk 0:02:43]} 11. Bd2 {[%clk 0:01:52]}  Nc5 {[%clk 0:02:41]} 12. O-O-O {[%clk 0:01:32]}  Bg4 {[%clk 0:02:33]} 13. h3 {[%clk 0:01:28]}  Bxf3 {[%clk 0:02:31]} 14. Qxf3 {[%clk 0:01:29]}  Nxd3+ {[%clk 0:02:28]} 15. Qxd3 {[%clk 0:01:30]}  Rad8 {[%clk 0:02:26]} 16. g4 {[%clk 0:01:28]}  Nd7 {[%clk 0:02:25]} 17. Be3 {[%clk 0:01:25]}  Qa5 {[%clk 0:02:23]} 18. g5 {[%clk 0:01:15]}  Nc5 {[%clk 0:02:16]} 19. Qe2 {[%clk 0:01:11]}  Na4 {[%clk 0:02:11]} 20. Nxa4 {[%clk 0:01:05]}  Qxa4 {[%clk 0:02:11]} 21. Bd4 {[%clk 0:01:05]}  Rfe8 {[%clk 0:02:05]} 22. h4 {[%clk 0:01:01]}  b5 {[%clk 0:01:50]} 23. h5 {[%clk 0:01:00]}  b4 {[%clk 0:01:48]} 24. Rh3 {[%clk 0:00:56]}  d5 {[%clk 0:01:45]} 25. h6 {[%clk 0:00:51]}  g6 {[%clk 0:01:41]} 26. b3 {[%clk 0:00:41]}  Qxa3+ {[%clk 0:01:33]} 27. Bb2 {[%clk 0:00:40]}  Qa5 {[%clk 0:01:28]} 28. f5 {[%clk 0:00:20]}  Bxg5+ {[%clk 0:01:23]} 29. Kb1 {[%clk 0:00:19]}  Rxe4 {[%clk 0:01:22]} 30. Qg2 {[%clk 0:00:14]}  Be7 {[%clk 0:01:10]} 31. Rf1 {[%clk 0:00:14]}  Qc7 {[%clk 0:00:59]} 32. fxg6 {[%clk 0:00:14]}  fxg6 {[%clk 0:00:56]} 33. Qxg6+ {[%clk 0:00:15]}  hxg6 {[%clk 0:00:31]} 34. h7# {[%clk 0:00:15]} 1-0


[Site "https://www.chess.com"]

[Event "Titled Tuesday Blitz December 06 Late 2022"]
[White "Van Dael, Siem"]
[Black "Zierk, Steven"]
[WhiteFideId "1049771"]
[BlackFideId "2034255"]
[WhiteElo "2336"]
[BlackElo "2494"]
[Result "1/2-1/2"]
[Round "06"]
[TimeControl "180+1"]
[Date "2022.12.06"]
[WhiteClock "0:00:25"]
[BlackClock "0:00:44"]

1. e4 {[%clk 0:03:00]}  e6 {[%clk 0:02:59]} 2. d4 {[%clk 0:03:00]}  d5 {[%clk 0:02:59]} 3. Nc3 {[%clk 0:03:00]}  Bb4 {[%clk 0:02:59]} 4. e5 {[%clk 0:03:00]}  c5 {[%clk 0:02:59]} 5. a3 {[%clk 0:03:01]}  Bxc3+ {[%clk 0:03:00]} 6. bxc3 {[%clk 0:03:02]}  Qa5 {[%clk 0:03:00]} 7. Bd2 {[%clk 0:03:01]}  Qa4 {[%clk 0:03:01]} 8. h4 {[%clk 0:03:02]}  b6 {[%clk 0:02:56]} 9. h5 {[%clk 0:03:00]}  Ne7 {[%clk 0:02:51]} 10. h6 {[%clk 0:02:50]}  gxh6 {[%clk 0:02:49]} 11. Nf3 {[%clk 0:02:48]}  Nbc6 {[%clk 0:02:44]} 12. Bd3 {[%clk 0:02:38]}  Ba6 {[%clk 0:02:42]} 13. Rxh6 {[%clk 0:02:35]}  cxd4 {[%clk 0:02:40]} 14. cxd4 {[%clk 0:02:33]}  Bxd3 {[%clk 0:02:38]} 15. cxd3 {[%clk 0:02:33]}  Qxd1+ {[%clk 0:02:39]} 16. Rxd1 {[%clk 0:02:30]}  Nf5 {[%clk 0:02:40]} 17. Rf6 {[%clk 0:02:29]}  Ncxd4 {[%clk 0:02:36]} 18. Ng5 {[%clk 0:02:23]}  O-O {[%clk 0:02:18]} 19. g4 {[%clk 0:02:12]}  Nh4 {[%clk 0:02:15]} 20. Bb4 {[%clk 0:02:05]}  Nc2+ {[%clk 0:02:11]} 21. Kd2 {[%clk 0:02:04]}  Nxb4 {[%clk 0:02:11]} 22. axb4 {[%clk 0:02:05]}  Ng6 {[%clk 0:02:08]} 23. f4 {[%clk 0:02:02]}  Kg7 {[%clk 0:02:04]} 24. Rh1 {[%clk 0:01:56]}  h6 {[%clk 0:02:02]} 25. Nf3 {[%clk 0:01:56]}  a5 {[%clk 0:01:58]} 26. bxa5 {[%clk 0:01:45]}  Rxa5 {[%clk 0:01:54]} 27. f5 {[%clk 0:01:41]}  Nxe5 {[%clk 0:01:46]} 28. Nxe5 {[%clk 0:01:41]}  Kxf6 {[%clk 0:01:44]} 29. Nd7+ {[%clk 0:01:42]}  Ke7 {[%clk 0:01:45]} 30. Nxf8 {[%clk 0:01:42]}  Kxf8 {[%clk 0:01:46]} 31. Rxh6 {[%clk 0:01:42]}  Ke7 {[%clk 0:01:45]} 32. f6+ {[%clk 0:01:38]}  Kd6 {[%clk 0:01:43]} 33. Rh7 {[%clk 0:01:38]}  Ra4 {[%clk 0:01:38]} 34. Rxf7 {[%clk 0:01:35]}  Rxg4 {[%clk 0:01:37]} 35. Rb7 {[%clk 0:01:33]}  Rf4 {[%clk 0:01:30]} 36. Rxb6+ {[%clk 0:01:31]}  Ke5 {[%clk 0:01:29]} 37. Ke3 {[%clk 0:01:18]}  d4+ {[%clk 0:01:29]} 38. Ke2 {[%clk 0:01:17]}  Kxf6 {[%clk 0:01:27]} 39. Rb5 {[%clk 0:01:13]}  Rh4 {[%clk 0:01:22]} 40. Kf3 {[%clk 0:01:07]}  e5 {[%clk 0:01:22]} 41. Rb8 {[%clk 0:01:01]}  Rh3+ {[%clk 0:01:21]} 42. Ke2 {[%clk 0:00:51]}  Rh2+ {[%clk 0:01:13]} 43. Kf3 {[%clk 0:00:49]}  Rd2 {[%clk 0:01:11]} 44. Ke4 {[%clk 0:00:48]}  Re2+ {[%clk 0:01:11]} 45. Kd5 {[%clk 0:00:48]}  Re3 {[%clk 0:01:02]} 46. Rf8+ {[%clk 0:00:46]}  Kg5 {[%clk 0:01:02]} 47. Rf1 {[%clk 0:00:37]}  Kg4 {[%clk 0:01:01]} 48. Rf8 {[%clk 0:00:37]}  Kg3 {[%clk 0:00:52]} 49. Rf5 {[%clk 0:00:33]}  Rxd3 {[%clk 0:00:52]} 50. Kxe5 {[%clk 0:00:27]}  Rd1 {[%clk 0:00:49]} 51. Ke4 {[%clk 0:00:25]}  d3 {[%clk 0:00:48]} 52. Ke3 {[%clk 0:00:25]}  d2 {[%clk 0:00:47]} 53. Ke2 {[%clk 0:00:25]}  Rh1 {[%clk 0:00:44]} 1/2-1/2


[Site "https://www.chess.com"]

[Event "Titled Tuesday Blitz December 06 Late 2022"]
[White "Vlassov, Nikolai"]
[Black "Eljanov, Pavel"]
[WhiteFideId "4103360"]
[BlackFideId "14102951"]
[WhiteElo "2324"]
[BlackElo "2598"]
[Result "0-1"]
[Round "06"]
[TimeControl "180+1"]
[Date "2022.12.06"]
[WhiteClock "0:00:05"]
[BlackClock "0:00:19"]

1. e4 {[%clk 0:03:00]}  c6 {[%clk 0:02:58]} 2. d4 {[%clk 0:02:59]}  d5 {[%clk 0:02:59]} 3. e5 {[%clk 0:03:00]}  Bf5 {[%clk 0:02:58]} 4. Nf3 {[%clk 0:03:00]}  e6 {[%clk 0:02:58]} 5. Be2 {[%clk 0:03:00]}  Nd7 {[%clk 0:02:57]} 6. O-O {[%clk 0:03:00]}  a5 {[%clk 0:02:58]} 7. c4 {[%clk 0:02:52]}  dxc4 {[%clk 0:02:52]} 8. Bxc4 {[%clk 0:02:51]}  Ne7 {[%clk 0:02:52]} 9. Nc3 {[%clk 0:02:50]}  Nb6 {[%clk 0:02:53]} 10. b3 {[%clk 0:02:33]}  Ned5 {[%clk 0:02:46]} 11. Nxd5 {[%clk 0:02:22]}  Nxd5 {[%clk 0:02:46]} 12. Bg5 {[%clk 0:02:20]}  Be7 {[%clk 0:02:37]} 13. Qd2 {[%clk 0:02:14]}  h6 {[%clk 0:02:28]} 14. Bxe7 {[%clk 0:02:12]}  Nxe7 {[%clk 0:02:28]} 15. Rfd1 {[%clk 0:01:58]}  O-O {[%clk 0:02:18]} 16. Qf4 {[%clk 0:01:45]}  Qb6 {[%clk 0:01:27]} 17. h4 {[%clk 0:01:38]}  a4 {[%clk 0:01:18]} 18. h5 {[%clk 0:01:33]}  Bc2 {[%clk 0:01:07]} 19. Rdc1 {[%clk 0:01:28]}  axb3 {[%clk 0:00:59]} 20. axb3 {[%clk 0:01:27]}  Rxa1 {[%clk 0:00:51]} 21. Rxa1 {[%clk 0:01:26]}  Rd8 {[%clk 0:00:50]} 22. g4 {[%clk 0:01:15]}  Qb4 {[%clk 0:00:50]} 23. g5 {[%clk 0:00:46]}  Nf5 {[%clk 0:00:36]} 24. g6 {[%clk 0:00:41]}  Bxb3 {[%clk 0:00:37]} 25. gxf7+ {[%clk 0:00:40]}  Kf8 {[%clk 0:00:37]} 26. Bxb3 {[%clk 0:00:35]}  Qxb3 {[%clk 0:00:37]} 27. Ra7 {[%clk 0:00:15]}  Kxf7 {[%clk 0:00:34]} 28. Qg4 {[%clk 0:00:10]}  Kg8 {[%clk 0:00:30]} 29. Qg6 {[%clk 0:00:09]}  Qxf3 {[%clk 0:00:30]} 30. Qxe6+ {[%clk 0:00:08]}  Kh8 {[%clk 0:00:30]} 31. Rxb7 {[%clk 0:00:08]}  Qg4+ {[%clk 0:00:28]} 32. Kh2 {[%clk 0:00:07]}  Qxh5+ {[%clk 0:00:29]} 33. Kg2 {[%clk 0:00:07]}  Qg4+ {[%clk 0:00:27]} 34. Kh2 {[%clk 0:00:07]}  Rf8 {[%clk 0:00:22]} 35. Qxc6 {[%clk 0:00:05]}  Qf4+ {[%clk 0:00:21]} 36. Kg1 {[%clk 0:00:05]}  Qxf2+ {[%clk 0:00:19]} 37. Kxf2 {[%clk 0:00:04]}  Nxd4+ {[%clk 0:00:20]} 38. Ke3 {[%clk 0:00:04]}  Nxc6 {[%clk 0:00:19]} 39. Ke4 {[%clk 0:00:05]}  Re8 {[%clk 0:00:19]} 0-1


[Site "https://www.chess.com"]